[Event "Kadett-SM 2025"]
[Site "Uppsala, Sweden"]
[Date "2025.07.02"]
[Round "4.2"]
[White "Berling, Egil"]
[Black "Ljungros, Lo"]
[Result "0-1"]
[TimeControl "90 min for 40 move + 30 min with an increment of 30 sec starting move 1"]
[WhiteFideId "1781197"]
[BlackFideId "1760114"]
[WhiteElo "2004"]
[BlackElo "2051"]

1. d4 {[%clk 01:30:57]} {[%emt 00:00:03]} Nf6 {[%clk 01:30:55]} {[%emt
00:00:06]} 2. Bf4 {[%clk 01:31:22]} {[%emt 00:00:04]} e6 {[%clk 01:31:14]}
{[%emt 00:00:12]} 3. e3 {[%clk 01:31:31]} {[%emt 00:00:21]} b6 {[%clk
01:31:13]} {[%emt 00:00:32]} 4. Nf3 {[%clk 01:31:10]} {[%emt 00:00:50]} Bb7
{[%clk 01:31:33]} {[%emt 00:00:09]} 5. Bd3 {[%clk 01:31:13]} {[%emt 00:00:28]}
c5 {[%clk 01:31:46]} {[%emt 00:00:17]} 6. Nbd2 {[%clk 01:28:47]} {[%emt
00:02:55]} Nc6 {[%clk 01:31:55]} {[%emt 00:00:21]} 7. c3 {[%clk 01:28:55]}
{[%emt 00:00:22]} Be7 {[%clk 01:32:12]} {[%emt 00:00:11]} 8. h3 {[%clk
01:28:55]} {[%emt 00:00:31]} O-O {[%clk 01:32:13]} {[%emt 00:00:28]} 9. O-O
{[%clk 01:28:29]} {[%emt 00:00:58]} d5 {[%clk 01:32:01]} {[%emt 00:00:42]} 10.
Qe2 {[%clk 01:22:34]} {[%emt 00:06:23]} Bd6 {[%clk 01:26:27]} {[%emt 00:06:04]}
11. Bxd6 {[%clk 01:18:01]} {[%emt 00:05:05]} Qxd6 {[%clk 01:25:24]} {[%emt
00:01:33]} 12. e4 {[%clk 01:17:32]} {[%emt 00:00:59]} dxe4 {[%clk 01:23:18]}
{[%emt 00:02:35]} 13. Nxe4 {[%clk 01:17:46]} {[%emt 00:00:16]} Qe7 {[%clk
01:11:36]} {[%emt 00:12:11]} 14. dxc5 {[%clk 01:14:34]} {[%emt 00:03:44]} bxc5
{[%clk 01:11:19]} {[%emt 00:00:46]} 15. Nfg5 {[%clk 01:06:06]} {[%emt
00:08:58]} Nxe4 {[%clk 01:04:43]} {[%emt 00:07:06]} 16. Qxe4 {[%clk 01:00:53]}
{[%emt 00:05:43]} g6 {[%clk 01:04:21]} {[%emt 00:00:51]} 17. Qh4 {[%clk
01:00:37]} {[%emt 00:00:48]} h5 {[%clk 00:57:54]} {[%emt 00:06:56]} 18. Rfe1
{[%clk 00:45:38]} {[%emt 00:15:30]} Qf6 {[%clk 00:46:15]} {[%emt 00:12:07]} 19.
Qg3 {[%clk 00:41:27]} {[%emt 00:04:41]} Ne7 {[%clk 00:37:30]} {[%emt 00:09:16]}
20. Ne4 {[%clk 00:39:59]} {[%emt 00:01:59]} Bxe4 {[%clk 00:32:40]} {[%emt
00:05:20]} 21. Bxe4 {[%clk 00:33:06]} {[%emt 00:07:24]} Rad8 {[%clk 00:21:34]}
{[%emt 00:11:35]} 22. Rad1 {[%clk 00:30:54]} {[%emt 00:02:42]} Nc8 {[%clk
00:18:25]} {[%emt 00:03:38]} 23. Qc7 {[%clk 00:27:53]} {[%emt 00:03:28]} Qe7
{[%clk 00:18:07]} {[%emt 00:00:52]} 24. Qxe7 {[%clk 00:25:23]} {[%emt
00:03:00]} Nxe7 {[%clk 00:18:16]} {[%emt 00:00:20]} 25. Kf1 {[%clk 00:24:51]}
{[%emt 00:01:01]} Kg7 {[%clk 00:18:28]} {[%emt 00:00:19]} 26. Ke2 {[%clk
00:23:26]} {[%emt 00:01:56]} Kf6 {[%clk 00:17:47]} {[%emt 00:01:10]} 27. Rxd8
{[%clk 00:19:41]} {[%emt 00:04:16]} Rxd8 {[%clk 00:17:57]} {[%emt 00:00:19]} 28.
Rd1 {[%clk 00:19:35]} {[%emt 00:00:37]} Rxd1 {[%clk 00:18:21]} {[%emt
00:00:06]} 29. Kxd1 {[%clk 00:19:59]} {[%emt 00:00:05]} Ke5 {[%clk 00:18:33]}
{[%emt 00:00:18]} 30. Bb7 {[%clk 00:19:10]} {[%emt 00:01:20]} g5 {[%clk
00:12:47]} {[%emt 00:06:16]} 31. Kd2 {[%clk 00:17:25]} {[%emt 00:02:13]} Nf5
{[%clk 00:12:35]} {[%emt 00:00:44]} 32. Kd3 {[%clk 00:15:02]} {[%emt 00:02:52]}
c4+ {[%clk 00:11:33]} {[%emt 00:01:33]} 33. Ke2 {[%clk 00:14:50]} {[%emt
00:00:42]} h4 {[%clk 00:11:04]} {[%emt 00:00:59]} 34. Bc6 {[%clk 00:13:32]}
{[%emt 00:01:48]} Ne7 {[%clk 00:08:26]} {[%emt 00:03:08]} 35. Bb7 {[%clk
00:13:15]} {[%emt 00:00:46]} f5 {[%clk 00:08:04]} {[%emt 00:00:53]} 36. b3
{[%clk 00:10:00]} {[%emt 00:03:45]} cxb3 {[%clk 00:07:25]} {[%emt 00:01:10]} 37.
axb3 {[%clk 00:10:24]} {[%emt 00:00:06]} g4 {[%clk 00:07:23]} {[%emt 00:00:31]}
38. hxg4 {[%clk 00:09:03]} {[%emt 00:01:51]} fxg4 {[%clk 00:07:45]} {[%emt
00:00:07]} 39. Kd3 {[%clk 00:03:11]} {[%emt 00:06:20]} a5 {[%clk 00:03:07]}
{[%emt 00:05:11]} 40. c4 {[%clk 00:01:57]} {[%emt 00:01:44]} Kd6 {[%clk
00:01:37]} {[%emt 00:02:00]} 41. Ke4 {[%clk 00:12:50]} {[%emt 00:19:36]} h3
{[%clk 00:22:55]} {[%emt 00:09:13]} 42. gxh3 {[%clk 00:11:33]} {[%emt
00:01:47]} gxh3 {[%clk 00:22:49]} {[%emt 00:00:35]} 43. Kf4 {[%clk 00:04:27]}
{[%emt 00:07:37]} Nf5 {[%clk 00:06:26]} {[%emt 00:16:52]} 44. Kg4 {[%clk
00:03:13]} {[%emt 00:01:45]} Nd4 {[%clk 00:05:41]} {[%emt 00:01:15]} 45. Kxh3
{[%clk 00:02:43]} {[%emt 00:01:00]} Nxb3 {[%clk 00:05:57]} {[%emt 00:00:14]} 46.
Be4 {[%clk 00:02:25]} {[%emt 00:00:48]} Nd4 {[%clk 00:06:01]} {[%emt 00:00:25]}
47. Kg3 {[%clk 00:01:53]} {[%emt 00:01:03]} a4 {[%clk 00:05:47]} {[%emt
00:00:44]} 48. Kf4 {[%clk 00:01:41]} {[%emt 00:00:42]} a3 {[%clk 00:05:09]}
{[%emt 00:01:08]} 49. Bb1 {[%clk 00:02:07]} {[%emt 00:00:03]} Ne2+ {[%clk
00:05:32]} {[%emt 00:00:07]} 50. Ke3 {[%clk 00:02:11]} {[%emt 00:00:27]} Nc3
{[%clk 00:05:52]} {[%emt 00:00:10]} 51. Ba2 {[%clk 00:02:12]} {[%emt 00:00:29]}
Nxa2 {[%clk 00:06:10]} {[%emt 00:00:12]} 52. Kd2 {[%clk 00:02:39]} {[%emt
00:00:03]} Nb4 {[%clk 00:06:23]} {[%emt 00:00:17]} 0-1

[Event "Kadett-SM 2025"]
[Site "Uppsala, Sweden"]
[Date "2025.07.02"]
[Round "4.3"]
[White "Dingertz, Filip"]
[Black "Morell, Oscar"]
[Result "1/2-1/2"]
[TimeControl "90 min for 40 move + 30 min with an increment of 30 sec starting move 1"]
[WhiteFideId "1757288"]
[BlackFideId "1752952"]
[WhiteElo "2043"]
[BlackElo "2001"]

1. c4 {[%clk 01:30:51]} {[%emt 00:00:08]} e5 {[%clk 01:29:18]} {[%emt
00:01:43]} 2. Nc3 {[%clk 01:30:26]} {[%emt 00:00:54]} Bb4 {[%clk 01:29:14]}
{[%emt 00:00:34]} 3. Nf3 {[%clk 01:25:30]} {[%emt 00:05:27]} Bxc3 {[%clk
01:27:52]} {[%emt 00:01:51]} 4. bxc3 {[%clk 01:25:34]} {[%emt 00:00:26]} d6
{[%clk 01:23:53]} {[%emt 00:04:29]} 5. g3 {[%clk 01:25:39]} {[%emt 00:00:25]}
Nf6 {[%clk 01:24:08]} {[%emt 00:00:15]} 6. Bg2 {[%clk 01:26:01]} {[%emt
00:00:08]} O-O {[%clk 01:24:23]} {[%emt 00:00:15]} 7. d3 {[%clk 01:26:17]}
{[%emt 00:00:14]} Nbd7 {[%clk 01:24:11]} {[%emt 00:00:42]} 8. O-O {[%clk
01:26:20]} {[%emt 00:00:28]} Nc5 {[%clk 01:22:55]} {[%emt 00:01:45]} 9. Nd2
{[%clk 01:24:59]} {[%emt 00:01:50]} Re8 {[%clk 01:18:57]} {[%emt 00:04:29]} 10.
Qc2 {[%clk 01:21:41]} {[%emt 00:03:47]} c6 {[%clk 01:11:44]} {[%emt 00:07:44]}
11. a4 {[%clk 01:17:06]} {[%emt 00:05:05]} Bg4 {[%clk 01:07:49]} {[%emt
00:04:24]} 12. Re1 {[%clk 01:16:29]} {[%emt 00:01:05]} Rc8 {[%clk 01:07:03]}
{[%emt 00:01:20]} 13. Ba3 {[%clk 01:06:08]} {[%emt 00:10:52]} Ne6 {[%clk
00:59:21]} {[%emt 00:08:12]} 14. Rab1 {[%clk 01:04:55]} {[%emt 00:01:40]} Qd7
{[%clk 00:56:50]} {[%emt 00:03:03]} 15. e4 {[%clk 00:56:43]} {[%emt 00:08:43]}
Nd8 {[%clk 00:45:28]} {[%emt 00:11:52]} 16. Nf1 {[%clk 00:55:02]} {[%emt
00:02:10]} b6 {[%clk 00:34:06]} {[%emt 00:11:53]} 17. Ne3 {[%clk 00:54:25]}
{[%emt 00:01:06]} Nb7 {[%clk 00:32:37]} {[%emt 00:01:59]} 18. Rf1 {[%clk
00:25:48]} {[%emt 00:29:08]} Bh3 {[%clk 00:27:10]} {[%emt 00:05:56]} 19. f4
{[%clk 00:25:53]} {[%emt 00:00:25]} Bxg2 {[%clk 00:26:36]} {[%emt 00:01:04]} 20.
Qxg2 {[%clk 00:23:58]} {[%emt 00:02:26]} Nc5 {[%clk 00:22:13]} {[%emt
00:04:53]} 21. Nf5 {[%clk 00:22:32]} {[%emt 00:01:55]} Rcd8 {[%clk 00:12:11]}
{[%emt 00:10:32]} 22. Qf3 {[%clk 00:19:07]} {[%emt 00:03:56]} Re6 {[%clk
00:07:24]} {[%emt 00:05:17]} 23. a5 {[%clk 00:16:42]} {[%emt 00:02:54]} Qc7
{[%clk 00:05:06]} {[%emt 00:02:48]} 24. axb6 {[%clk 00:06:10]} {[%emt
00:11:02]} axb6 {[%clk 00:05:33]} {[%emt 00:00:04]} 25. Rb2 {[%clk 00:06:21]}
{[%emt 00:00:18]} Na4 {[%clk 00:03:34]} {[%emt 00:02:29]} 26. Rb3 {[%clk
00:04:49]} {[%emt 00:02:01]} d5 {[%clk 00:01:45]} {[%emt 00:02:21]} 27. exd5
{[%clk 00:03:24]} {[%emt 00:01:55]} cxd5 {[%clk 00:02:08]} {[%emt 00:00:07]} 28.
cxd5 {[%clk 00:03:48]} {[%emt 00:00:06]} Nxd5 {[%clk 00:01:26]} {[%emt
00:01:11]} 29. fxe5 {[%clk 00:01:50]} {[%emt 00:02:28]} Qxe5 {[%clk 00:01:04]}
{[%emt 00:00:53]} 30. c4 {[%clk 00:01:00]} {[%emt 00:01:20]} Ndc3 {[%clk
00:01:02]} {[%emt 00:00:32]} 31. Bb4 {[%clk 00:00:38]} {[%emt 00:00:51]} Rf6
{[%clk 00:00:37]} {[%emt 00:00:55]} 32. d4 {[%clk 00:00:39]} {[%emt 00:00:30]}
Ne2+ {[%clk 00:00:40]} {[%emt 00:00:27]} 33. Kg2 {[%clk 00:00:38]} {[%emt
00:00:31]} Nxd4 {[%clk 00:00:32]} {[%emt 00:00:38]} 34. Rd3 {[%clk 00:00:57]}
{[%emt 00:00:11]} h6 {[%clk 00:00:31]} {[%emt 00:00:30]} 35. Qg4 {[%clk
00:00:31]} {[%emt 00:00:56]} Rg6 {[%clk 00:00:33]} {[%emt 00:00:28]} 36. Qd1
{[%clk 00:00:35]} {[%emt 00:00:27]} Nxf5 {[%clk 00:00:34]} {[%emt 00:00:28]} 37.
Rxd8+ {[%clk 00:00:47]} {[%emt 00:00:18]} Kh7 {[%clk 00:01:04]} 38. Rxf5 {[%clk
00:00:52]} {[%emt 00:00:27]} Qxf5 {[%clk 00:01:19]} {[%emt 00:00:14]} 39. Qxa4
{[%clk 00:01:14]} {[%emt 00:00:07]} Qe4+ {[%clk 00:01:24]} {[%emt 00:00:25]} 40.
Kg1 {[%clk 00:00:46]} {[%emt 00:00:57]} Qe3+ {[%clk 00:01:26]} {[%emt
00:00:30]} 41. Kg2 {[%clk 00:30:10]} {[%emt 00:01:04]} Qe2+ {[%clk 00:26:05]}
{[%emt 00:05:52]} 42. Kg1 {[%clk 00:29:49]} {[%emt 00:00:50]} 1/2-1/2

[Event "Kadett-SM 2025"]
[Site "Uppsala, Sweden"]
[Date "2025.07.02"]
[Round "4.4"]
[White "Grettve Odenfors, Axel"]
[Black "Prabu, Dananjey"]
[Result "0-1"]
[TimeControl "90 min for 40 move + 30 min with an increment of 30 sec starting move 1"]
[WhiteFideId "1763741"]
[BlackFideId "25744992"]
[WhiteElo "1774"]
[BlackElo "2047"]

1. e4 {[%clk 01:30:58]} {[%emt 00:00:02]} e5 {[%clk 01:30:56]} {[%emt
00:00:05]} 2. Nf3 {[%clk 01:31:21]} {[%emt 00:00:07]} Nc6 {[%clk 01:31:22]}
{[%emt 00:00:04]} 3. Bc4 {[%clk 01:31:40]} {[%emt 00:00:10]} Bc5 {[%clk
01:31:46]} {[%emt 00:00:05]} 4. b4 {[%clk 01:31:55]} {[%emt 00:00:17]} Bxb4
{[%clk 01:31:54]} {[%emt 00:00:22]} 5. c3 {[%clk 01:32:15]} {[%emt 00:00:10]}
Ba5 {[%clk 01:32:20]} {[%emt 00:00:03]} 6. d4 {[%clk 01:32:37]} {[%emt
00:00:08]} exd4 {[%clk 01:26:23]} {[%emt 00:06:27]} 7. O-O {[%clk 01:32:50]}
{[%emt 00:00:17]} d6 {[%clk 00:36:13]} {[%emt 00:50:40]} 8. cxd4 {[%clk
01:13:49]} {[%emt 00:19:31]} Nf6 {[%clk 00:35:25]} {[%emt 00:01:17]} 9. e5
{[%clk 00:57:29]} {[%emt 00:16:51]} dxe5 {[%clk 00:28:14]} {[%emt 00:07:41]} 10.
Ba3 {[%clk 00:57:48]} {[%emt 00:00:11]} Be6 {[%clk 00:25:39]} {[%emt 00:03:04]}
11. Bxe6 {[%clk 00:50:54]} {[%emt 00:07:25]} fxe6 {[%clk 00:26:07]} {[%emt
00:00:03]} 12. Nbd2 {[%clk 00:22:04]} {[%emt 00:29:18]} Bxd2 {[%clk 00:19:22]}
{[%emt 00:07:15]} 13. Qxd2 {[%clk 00:21:45]} {[%emt 00:00:50]} e4 {[%clk
00:19:39]} {[%emt 00:00:13]} 14. Ng5 {[%clk 00:13:37]} {[%emt 00:08:38]} Qd5
{[%clk 00:18:36]} {[%emt 00:01:33]} 15. Rac1 {[%clk 00:11:38]} {[%emt
00:02:29]} h6 {[%clk 00:16:27]} {[%emt 00:02:38]} 16. Rc5 {[%clk 00:08:31]}
{[%emt 00:03:39]} Qd7 {[%clk 00:16:41]} {[%emt 00:00:15]} 17. Nh3 {[%clk
00:06:37]} {[%emt 00:02:24]} O-O {[%clk 00:13:31]} {[%emt 00:03:40]} 18. Rd1
{[%clk 00:02:18]} {[%emt 00:04:48]} Rad8 {[%clk 00:11:47]} {[%emt 00:02:14]} 19.
Rc4 {[%clk 00:00:43]} {[%emt 00:02:06]} Rf7 {[%clk 00:11:26]} {[%emt 00:00:51]}
20. Nf4 {[%clk 00:00:54]} {[%emt 00:00:19]} e5 {[%clk 00:10:28]} {[%emt
00:01:28]} 21. Ne2 {[%clk 00:00:58]} {[%emt 00:00:26]} Qf5 {[%clk 00:06:21]}
{[%emt 00:04:37]} 22. Ng3 {[%clk 00:01:07]} {[%emt 00:00:21]} Qe6 {[%clk
00:06:28]} {[%emt 00:00:23]} 23. Qc3 {[%clk 00:00:32]} {[%emt 00:01:05]} Nxd4
{[%clk 00:05:51]} {[%emt 00:01:05]} 24. Kf1 {[%clk 00:00:33]} {[%emt 00:00:31]}
c6 {[%clk 00:03:53]} {[%emt 00:02:26]} 25. Ne2 {[%clk 00:00:42]} {[%emt
00:00:23]} b5 {[%clk 00:02:54]} {[%emt 00:01:29]} 26. Nxd4 {[%clk 00:00:33]}
{[%emt 00:00:38]} Qxc4+ {[%clk 00:03:17]} {[%emt 00:00:08]} 27. Qxc4 {[%clk
00:00:35]} {[%emt 00:00:28]} bxc4 {[%clk 00:03:41]} {[%emt 00:00:06]} 0-1

[Event "Kadett-SM 2025"]
[Site "Uppsala, Sweden"]
[Date "2025.07.01"]
[Round "3.2"]
[White "Prabu, Dananjey"]
[Black "Berling, Egil"]
[Result "0-1"]
[TimeControl "90 min for 40 move + 30 min with an increment of 30 sec starting move 1"]
[WhiteFideId "25744992"]
[BlackFideId "1781197"]
[WhiteElo "2047"]
[BlackElo "2004"]

1. e4 {[%clk 01:30:57]} {[%emt 00:00:01]} c6 {[%clk 01:30:57]} {[%emt
00:00:04]} 2. Nc3 {[%clk 01:30:59]} {[%emt 00:00:24]} d5 {[%clk 01:31:21]}
{[%emt 00:00:09]} 3. Nf3 {[%clk 01:31:25]} {[%emt 00:00:04]} dxe4 {[%clk
01:31:45]} {[%emt 00:00:06]} 4. Nxe4 {[%clk 01:31:49]} {[%emt 00:00:04]} Nf6
{[%clk 01:32:08]} {[%emt 00:00:10]} 5. Nc3 {[%clk 01:29:49]} {[%emt 00:02:29]}
Bf5 {[%clk 01:30:10]} {[%emt 00:02:29]} 6. Bc4 {[%clk 01:27:43]} {[%emt
00:02:35]} e6 {[%clk 01:29:34]} {[%emt 00:01:06]} 7. O-O {[%clk 01:28:03]}
{[%emt 00:00:10]} Nbd7 {[%clk 01:28:18]} {[%emt 00:01:47]} 8. d4 {[%clk
01:27:40]} {[%emt 00:00:52]} Bd6 {[%clk 01:28:06]} {[%emt 00:00:38]} 9. h3
{[%clk 01:27:53]} {[%emt 00:00:22]} h6 {[%clk 01:24:55]} {[%emt 00:03:41]} 10.
Re1 {[%clk 01:27:18]} {[%emt 00:01:04]} Qc7 {[%clk 01:23:12]} {[%emt 00:02:13]}
11. a3 {[%clk 01:17:44]} {[%emt 00:10:05]} O-O {[%clk 01:23:08]} {[%emt
00:00:33]} 12. Bd2 {[%clk 01:04:39]} {[%emt 00:13:35]} e5 {[%clk 01:21:00]}
{[%emt 00:02:39]} 13. Bd3 {[%clk 01:00:53]} {[%emt 00:04:15]} Bxd3 {[%clk
01:19:49]} {[%emt 00:01:41]} 14. cxd3 {[%clk 01:01:02]} {[%emt 00:00:22]} exd4
{[%clk 01:10:26]} {[%emt 00:09:53]} 15. Nxd4 {[%clk 01:01:02]} {[%emt
00:00:29]} Rfe8 {[%clk 01:08:02]} {[%emt 00:02:55]} 16. Ne4 {[%clk 00:46:56]}
{[%emt 00:14:35]} Rad8 {[%clk 01:01:35]} {[%emt 00:06:55]} 17. Nf5 {[%clk
00:32:41]} {[%emt 00:14:48]} Bf8 {[%clk 00:58:45]} {[%emt 00:03:19]} 18. Bc3
{[%clk 00:30:55]} {[%emt 00:02:14]} Nxe4 {[%clk 00:53:30]} {[%emt 00:05:48]} 19.
dxe4 {[%clk 00:29:58]} {[%emt 00:01:26]} g6 {[%clk 00:49:36]} {[%emt 00:04:25]}
20. Nh4 {[%clk 00:21:09]} {[%emt 00:09:18]} Ne5 {[%clk 00:40:31]} {[%emt
00:09:36]} 21. Qb3 {[%clk 00:20:10]} {[%emt 00:01:28]} Nd3 {[%clk 00:38:54]}
{[%emt 00:02:07]} 22. Re3 {[%clk 00:00:41]} {[%emt 00:20:00]} Nxf2 {[%clk
00:28:13]} {[%emt 00:11:12]} 23. Kxf2 {[%clk 00:00:36]} {[%emt 00:00:34]} Qf4+
{[%clk 00:27:33]} {[%emt 00:01:10]} 24. Rf3 {[%clk 00:00:41]} {[%emt 00:00:24]}
Qxh4+ {[%clk 00:27:51]} {[%emt 00:00:12]} 25. g3 {[%clk 00:01:06]} {[%emt
00:00:06]} Bc5+ {[%clk 00:28:06]} {[%emt 00:00:15]} 26. Kg2 {[%clk 00:01:22]}
{[%emt 00:00:13]} Qe7 {[%clk 00:27:59]} {[%emt 00:00:38]} 27. Raf1 {[%clk
00:01:30]} {[%emt 00:00:22]} Rf8 {[%clk 00:26:48]} {[%emt 00:01:42]} 28. Bf6
{[%clk 00:01:12]} {[%emt 00:00:47]} Rd2+ {[%clk 00:27:10]} {[%emt 00:00:08]} 29.
Kh1 {[%clk 00:01:21]} {[%emt 00:00:20]} Qxe4 {[%clk 00:26:44]} {[%emt
00:00:57]} 30. Bc3 {[%clk 00:00:31]} {[%emt 00:01:21]} Rd3 {[%clk 00:21:22]}
{[%emt 00:05:50]} 31. Qc2 {[%clk 00:00:59]} {[%emt 00:00:03]} Rxf3 {[%clk
00:20:58]} {[%emt 00:00:55]} 32. Qxe4 {[%clk 00:01:22]} {[%emt 00:00:06]} Rxf1+
{[%clk 00:21:23]} {[%emt 00:00:04]} 33. Kh2 {[%clk 00:01:03]} {[%emt 00:00:49]}
Rf2+ {[%clk 00:20:51]} {[%emt 00:01:02]} 34. Kh1 {[%clk 00:01:29]} {[%emt
00:00:05]} Rd8 {[%clk 00:18:04]} {[%emt 00:03:17]} 35. Qe1 {[%clk 00:01:57]}
{[%emt 00:00:01]} Rf3 {[%clk 00:17:14]} {[%emt 00:01:21]} 36. h4 {[%clk
00:00:47]} {[%emt 00:01:40]} Rfd3 {[%clk 00:11:41]} {[%emt 00:06:03]} 37. Kg2
{[%clk 00:00:32]} {[%emt 00:00:45]} Bd4 {[%clk 00:11:54]} {[%emt 00:00:18]} 38.
Bxd4 {[%clk 00:00:39]} {[%emt 00:00:23]} R3xd4 {[%clk 00:12:17]} {[%emt
00:00:06]} 39. Qe5 {[%clk 00:00:36]} {[%emt 00:00:32]} Rd1 {[%clk 00:12:32]}
{[%emt 00:00:16]} 40. Kh3 {[%clk 00:00:42]} {[%emt 00:00:24]} h5 {[%clk
00:12:30]} {[%emt 00:00:32]} 41. Qe4 {[%clk 00:00:42]} {[%emt 00:00:30]} R1d2
{[%clk 00:11:41]} {[%emt 00:01:19]} 42. Qe7 {[%clk 00:29:23]} {[%emt 00:01:48]}
R2d7 {[%clk 00:39:00]} {[%emt 00:03:12]} 43. Qe1 {[%clk 00:23:02]} {[%emt
00:06:50]} c5 {[%clk 00:38:12]} {[%emt 00:01:19]} 44. Qa5 {[%clk 00:19:22]}
{[%emt 00:04:10]} b6 {[%clk 00:38:06]} {[%emt 00:00:36]} 45. Qa4 {[%clk
00:18:15]} {[%emt 00:01:36]} Re7 {[%clk 00:38:21]} {[%emt 00:00:15]} 46. Kg2
{[%clk 00:12:13]} {[%emt 00:06:33]} Rd2+ {[%clk 00:38:07]} {[%emt 00:00:44]} 47.
Kf3 {[%clk 00:12:35]} {[%emt 00:00:07]} Rxb2 {[%clk 00:36:49]} {[%emt
00:01:48]} 48. Kf4 {[%clk 00:13:01]} {[%emt 00:00:04]} Rf2+ {[%clk 00:36:38]}
{[%emt 00:00:42]} 49. Kg5 {[%clk 00:13:21]} {[%emt 00:00:10]} Kg7 {[%clk
00:36:56]} {[%emt 00:00:11]} 0-1

[Event "Kadett-SM 2025"]
[Site "Uppsala, Sweden"]
[Date "2025.07.01"]
[Round "3.3"]
[White "Nodtveidt, Svante"]
[Black "Strand, Sixten"]
[Result "1-0"]
[TimeControl "90 min for 40 move + 30 min with an increment of 30 sec starting move 1"]
[WhiteFideId "1774450"]
[BlackFideId "1784137"]
[WhiteElo "1838"]
[BlackElo "1981"]

1. d4 {[%clk 01:28:58]} {[%emt 00:02:01]} d5 {[%clk 01:30:43]} {[%emt
00:00:17]} 2. c4 {[%clk 01:29:20]} {[%emt 00:00:07]} e6 {[%clk 01:31:10]}
{[%emt 00:00:04]} 3. Nc3 {[%clk 01:29:43]} {[%emt 00:00:07]} a6 {[%clk
01:31:37]} {[%emt 00:00:04]} 4. e3 {[%clk 01:24:18]} {[%emt 00:05:53]} dxc4
{[%clk 01:31:47]} {[%emt 00:00:22]} 5. a4 {[%clk 01:21:29]} {[%emt 00:03:19]}
c5 {[%clk 01:30:42]} {[%emt 00:01:35]} 6. Bxc4 {[%clk 01:18:11]} {[%emt
00:03:46]} cxd4 {[%clk 01:30:24]} {[%emt 00:00:50]} 7. exd4 {[%clk 01:16:27]}
{[%emt 00:02:13]} Nf6 {[%clk 01:27:28]} {[%emt 00:03:26]} 8. Nf3 {[%clk
01:14:35]} {[%emt 00:02:19]} Nbd7 {[%clk 01:23:36]} {[%emt 00:04:24]} 9. O-O
{[%clk 01:13:18]} {[%emt 00:01:46]} Nb6 {[%clk 01:23:01]} {[%emt 00:01:07]} 10.
Bb3 {[%clk 01:04:22]} {[%emt 00:09:25]} Nbd5 {[%clk 01:14:02]} {[%emt
00:09:30]} 11. Bg5 {[%clk 00:57:51]} {[%emt 00:07:01]} Be7 {[%clk 01:12:43]}
{[%emt 00:01:49]} 12. Re1 {[%clk 00:56:09]} {[%emt 00:02:11]} O-O {[%clk
01:09:54]} {[%emt 00:03:20]} 13. Qe2 {[%clk 00:42:19]} {[%emt 00:14:18]} Nxc3
{[%clk 00:55:35]} {[%emt 00:14:50]} 14. bxc3 {[%clk 00:42:36]} {[%emt
00:00:13]} Re8 {[%clk 00:51:42]} {[%emt 00:04:24]} 15. Rad1 {[%clk 00:41:06]}
{[%emt 00:02:00]} Qb6 {[%clk 00:45:04]} {[%emt 00:07:07]} 16. Bc2 {[%clk
00:34:42]} {[%emt 00:06:54]} Nd7 {[%clk 00:33:50]} {[%emt 00:11:44]} 17. g3
{[%clk 00:19:29]} {[%emt 00:15:43]} f6 {[%clk 00:26:41]} {[%emt 00:07:39]} 18.
Bd2 {[%clk 00:15:41]} {[%emt 00:04:17]} Nf8 {[%clk 00:24:54]} {[%emt 00:02:18]}
19. h4 {[%clk 00:11:50]} {[%emt 00:04:22]} Bd7 {[%clk 00:21:22]} {[%emt
00:04:02]} 20. Nh2 {[%clk 00:08:54]} {[%emt 00:03:25]} Bc6 {[%clk 00:11:10]}
{[%emt 00:10:43]} 21. Ng4 {[%clk 00:05:04]} {[%emt 00:04:19]} Bd6 {[%clk
00:06:35]} {[%emt 00:05:05]} 22. h5 {[%clk 00:03:12]} {[%emt 00:02:21]} e5
{[%clk 00:05:20]} {[%emt 00:01:45]} 23. Rb1 {[%clk 00:02:37]} {[%emt 00:01:05]}
Qc7 {[%clk 00:04:59]} {[%emt 00:00:51]} 24. Bb3+ {[%clk 00:02:53]} {[%emt
00:00:15]} Kh8 {[%clk 00:03:41]} {[%emt 00:01:47]} 25. d5 {[%clk 00:00:33]}
{[%emt 00:02:51]} Bd7 {[%clk 00:03:53]} {[%emt 00:00:18]} 26. Ne3 {[%clk
00:00:37]} {[%emt 00:00:26]} Bc5 {[%clk 00:02:55]} {[%emt 00:01:27]} 27. Nc4
{[%clk 00:00:35]} {[%emt 00:00:32]} b5 {[%clk 00:02:48]} {[%emt 00:00:37]} 28.
Nb2 {[%clk 00:00:33]} {[%emt 00:00:32]} Ba3 {[%clk 00:02:32]} {[%emt 00:00:47]}
29. axb5 {[%clk 00:00:44]} {[%emt 00:00:19]} Rab8 {[%clk 00:01:42]} {[%emt
00:01:20]} 30. Nc4 {[%clk 00:00:59]} {[%emt 00:00:15]} Bxb5 {[%clk 00:01:30]}
{[%emt 00:00:42]} 31. Qe4 {[%clk 00:00:33]} {[%emt 00:00:55]} f5 {[%clk
00:01:12]} {[%emt 00:00:48]} 32. Qh4 {[%clk 00:00:52]} {[%emt 00:00:10]} Be7
{[%clk 00:01:37]} {[%emt 00:00:05]} 33. d6 {[%clk 00:00:40]} {[%emt 00:00:42]}
Bxd6 {[%clk 00:01:20]} {[%emt 00:00:47]} 34. Nxd6 {[%clk 00:00:34]} {[%emt
00:00:36]} Qxd6 {[%clk 00:01:43]} {[%emt 00:00:07]} 35. Be3 {[%clk 00:00:35]}
{[%emt 00:00:30]} Bd3 {[%clk 00:01:29]} {[%emt 00:00:43]} 36. Red1 {[%clk
00:00:37]} {[%emt 00:00:28]} e4 {[%clk 00:00:55]} {[%emt 00:01:04]} 37. Bc2
{[%clk 00:00:33]} {[%emt 00:00:35]} Qd8 {[%clk 00:00:37]} {[%emt 00:00:47]} 38.
Bg5 {[%clk 00:00:39]} {[%emt 00:00:24]} Qa5 {[%clk 00:00:40]} {[%emt 00:00:27]}
39. Bxd3 {[%clk 00:00:42]} {[%emt 00:00:28]} exd3 {[%clk 00:00:59]} {[%emt
00:00:11]} 40. Rxb8 {[%clk 00:00:41]} {[%emt 00:00:29]} Rxb8 {[%clk 00:01:17]}
{[%emt 00:00:13]} 41. Rxd3 {[%clk 00:29:41]} {[%emt 00:01:29]} Qb5 {[%clk
00:27:07]} {[%emt 00:04:42]} 42. Rd8 {[%clk 00:27:33]} {[%emt 00:02:37]} h6
{[%clk 00:22:20]} {[%emt 00:05:17]} 43. Bxh6 {[%clk 00:22:00]} {[%emt
00:06:02]} gxh6 {[%clk 00:19:21]} {[%emt 00:03:30]} 44. Qf6+ {[%clk 00:22:02]}
{[%emt 00:00:25]} Kg8 {[%clk 00:19:45]} {[%emt 00:00:08]} 45. Qxf8+ {[%clk
00:22:21]} {[%emt 00:00:12]} 1-0